bitfinex/quotes_SOLUSD_20250817
["timestamp","ask_amount","ask_price","bid_price","bid_amount"]
[1755395121040,0.72,188.3,188.28,3.25062656]
[1755395121746,0.52887666,188.31,188.29,3.25062656]
[1755395122130,0.72,188.31,188.29,3.25062656]
[1755395125038,4.28010737,188.31,188.26,0.33]
[1755395125251,0.72,188.3,188.28,3.25062656]
[1755395125565,0.72,188.29,188.28,3.25062656]
[1755395125758,0.72,188.29,188.27,3.25062656]
[1755395125934,1.24887666,188.28,188.26,0.03]
[1755395126137,4.49950322,188.28,188.26,0.03]
[1755395126367,7.53140878,188.27,188.26,0.03]
[1755395127068,4.28078222,188.27,188.26,0.03]
[1755395127272,11.48902876,188.27,188.26,0.03]
[1755395127866,16.80054944,188.27,188.26,0.03]
[1755395128846,31.90676501,188.27,188.18,3.25062656]
[1755395129050,3.25062656,188.21,188.1,19.31677621]
[1755395129372,4.08965888,188.21,188.17,3.25062656]
[1755395129550,3.56078222,188.21,188.19,5.31377484]
[1755395129753,0.52887666,188.22,188.2,3.28062656]
[1755395130074,4.09052371,188.25,188.21,3.25062656]
[1755395130256,3.56164705,188.24,188.22,3.25062656]
[1755395130460,3.56164705,188.23,188.21,3.25062656]
[1755395130659,0.52887666,188.23,188.21,3.25062656]
[1755395130857,0.72,188.22,188.2,0.03]
[1755395131359,0.52887666,188.23,188.2,0.03]
[1755395131671,0.72,188.21,188.2,0.03]
[1755395131863,4.81085966,188.21,188.2,0.03]
[1755395132746,4.09085966,188.21,188.2,0.03]
[1755395132943,0.72,188.23,188.2,0.03]
[1755395133151,4.09085966,188.22,188.2,0.03]
[1755395133382,1.24887666,188.22,188.2,0.03]
[1755395133561,0.72,188.21,188.2,0.03]
[1755395134161,0.52887666,188.22,188.21,0.03]
[1755395134365,4.28226477,188.22,188.21,0.03]
[1755395135881,3.56226477,188.22,188.21,0.03]
[1755395136084,0.52887666,188.24,188.21,0.03]
[1755395136257,3.56078852,188.23,188.21,0.03]
[1755395136457,4.80966518,188.22,188.21,0.03]
[1755395136658,8.06029174,188.22,188.21,0.03]
[1755395137287,46.76029174,188.22,188.21,0.03]
[1755395137953,43.50966518,188.22,188.21,0.03]
[1755395138159,46.76029174,188.22,188.21,0.03]
[1755395138480,52.07322341,188.22,188.21,0.03]
[1755395139474,46.76029174,188.22,188.21,0.03]
[1755395139780,39.22887666,188.22,188.21,0.03]
[1755395140771,0.52887666,188.22,188.21,0.03]
[1755395140977,0.52887666,188.23,188.21,0.03]
[1755395141191,0.52887666,188.24,188.22,3.25062656]
[1755395141370,38.64,188.25,188.23,3.25062656]
[1755395141686,0.52887666,188.27,188.24,3.25062656]
[1755395141888,3.55727667,188.26,188.24,3.25062656]
[1755395142888,3.55727667,188.27,188.25,3.25062656]
[1755395143189,3.55727667,188.27,188.21,5.3430589]
[1755395143190,0.72,188.26,188.21,5.3430589]
[1755395143356,1.24887666,188.25,188.22,3.25062656]
[1755395143557,0.72,188.24,188.21,3.28062656]
[1755395143795,0.72,188.23,188.21,3.28062656]
[1755395144290,0.72,188.23,188.21,0.03]
[1755395144458,0.71,188.22,188.21,0.03]
[1755395145168,4.79634724,188.25,188.21,3.28062656]
[1755395145761,0.71,188.24,188.21,3.28062656]
[1755395145961,0.52887666,188.23,188.22,3.25062656]
[1755395146164,43.41634724,188.27,188.22,3.55062656]
[1755395146481,3.55771298,188.26,188.22,3.25062656]
[1755395146679,1.23887666,188.25,188.22,3.25062656]
[1755395147371,0.71,188.24,188.22,3.25062656]
[1755395147572,0.52887666,188.23,188.21,3.28062656]
[1755395147881,0.71,188.22,188.21,0.03]
[1755395149061,4.26771298,188.22,188.21,0.03]
[1755395149269,9.58064465,188.22,188.21,0.03]
[1755395149494,12.83127121,188.22,188.21,0.03]
[1755395149684,16.78346488,188.22,188.21,0.03]
[1755395149989,42.78346488,188.22,188.21,0.03]
[1755395150394,31.88968045,188.22,188.21,1e-08]
[1755395150704,15.10621557,188.18,188.07,3.25062656]
[1755395150997,3.25062656,188.08,188.03,3.25062656]
[1755395151196,0.52887666,188.07,188.02,3.25062656]
[1755395151367,0.71,188.06,188.02,3.25062656]
[1755395151679,0.71,188.06,188.01,5.31886382]
[1755395152069,4.48950322,188.05,187.99,3.25062656]
[1755395152274,4.48950322,188.05,188.0,3.25062656]
[1755395152473,3.77950322,188.05,188.0,3.25062656]
[1755395152664,3.77950322,188.05,187.98,26.33]
[1755395152665,0.71,188.04,188.01,3.25062656]
[1755395152886,0.71,188.04,188.0,3.25062656]
[1755395153084,0.71,188.04,187.96,2.76923228]
[1755395153085,3.25062656,188.02,187.97,3.25062656]
[1755395153285,0.52887666,188.01,187.97,8.57038387]
[1755395153472,0.52887666,188.02,187.98,3.25062656]
[1755395153680,0.52887666,188.02,187.97,8.57038387]
[1755395153973,0.71,188.01,187.97,8.57038387]
[1755395154197,0.52887666,188.04,187.99,3.25062656]
[1755395154390,0.71,188.03,187.97,5.31975731]
[1755395154592,0.52887666,188.02,187.98,3.25062656]
[1755395154771,0.52887666,188.02,187.97,10.8695638]
[1755395154772,0.71,188.01,187.97,10.8695638]
[1755395154967,6.25980649,188.01,187.94,2.76965587]
[1755395155191,6.78868315,188.0,187.95,5.54980649]
[1755395155395,0.71,187.99,187.95,10.87033697]
[1755395156589,0.52887666,188.0,187.96,5.54980649]
[1755395156792,39.06887666,188.04,187.99,5.54980649]
[1755395157099,39.04887666,188.04,188.01,5.54980649]
[1755395157292,39.04887666,188.04,187.99,0.33]
[1755395157495,39.75887666,188.04,188.0,5.54980649]
[1755395157691,39.75887666,188.04,187.97,0.33]
[1755395157890,39.75887666,188.04,188.0,5.54980649]
[1755395158095,39.75887666,188.04,188.01,5.54980649]
[1755395158293,39.04887666,188.04,188.01,5.54980649]
[1755395158602,0.71,188.03,188.01,5.54980649]
[1755395158820,0.71,188.03,187.98,5.31971486]
[1755395159004,0.71,188.03,188.01,5.54980649]
[1755395160086,0.71,188.05,188.01,5.54980649]
[1755395160405,0.52887666,188.06,188.04,5.54980649]
[1755395160620,39.06887666,188.07,188.02,0.33]
[1755395160828,0.52887666,188.08,188.06,5.54980649]
[1755395161102,39.23,188.1,188.07,5.54980649]
[1755395161504,1.23887666,188.09,188.06,5.54980649]
[1755395161692,0.71,188.09,188.03,18.94405094]
[1755395161888,0.71,188.09,188.07,5.54980649]
[1755395163419,0.71,188.08,188.05,5.54980649]
[1755395163718,0.71,188.07,188.04,5.54980649]
[1755395163897,0.71,188.06,188.04,5.54980649]
[1755395164311,1.23887666,188.08,188.05,5.54980649]
[1755395164695,0.52887666,188.08,188.05,5.54980649]
[1755395165011,38.52,188.1,188.07,5.54980649]
[1755395165185,38.52,188.1,188.08,5.54980649]
[1755395165384,0.52887666,188.12,188.08,5.54980649]
[1755395165682,0.71,188.11,188.08,5.54980649]
[1755395165890,1.23887666,188.1,188.06,5.31725253]
[1755395166102,1.23887666,188.1,188.07,5.54980649]
[1755395166610,1.23887666,188.1,188.08,5.54980649]
[1755395166799,0.52887666,188.1,188.07,5.54980649]
[1755395167003,0.71,188.09,188.06,5.54980649]
[1755395167206,0.52887666,188.09,188.04,5.31774318]
[1755395167389,0.52887666,188.09,188.06,5.54980649]
[1755395167390,0.71,188.08,188.06,5.54980649]
[1755395167710,1.23887666,188.07,188.05,5.54980649]
[1755395167915,0.52887666,188.09,188.06,5.54980649]
[1755395168208,1.23887666,188.09,188.06,5.54980649]
[1755395168818,0.52887666,188.1,188.07,5.54980649]
[1755395170016,0.52887666,188.1,188.08,5.54980649]
[1755395170197,1.23887666,188.1,188.07,10.86692843]
[1755395171602,3.53171646,188.11,188.09,5.54980649]
[1755395171818,3.53171646,188.11,188.1,5.54980649]
[1755395174210,3.53171646,188.11,188.07,5.31691373]
[1755395174416,0.65,188.13,188.09,5.54980649]
[1755395174615,4.71484585,188.12,188.07,5.31691373]
[1755395174920,5.54980649,188.1,188.04,5.54980649]
[1755395175227,1.17887666,188.1,188.06,5.54980649]
[1755395175415,0.65,188.09,188.05,5.54980649]
[1755395175635,3.53592053,188.09,188.05,5.54980649]
[1755395175833,0.65,188.08,188.05,5.54980649]
[1755395176195,1.17887666,188.08,188.05,5.54980649]
[1755395176393,5.54980649,188.1,188.02,5.54980649]
[1755395176394,1.17887666,188.07,188.02,5.54980649]
[1755395176711,4.4479805,188.07,188.02,3.26910384]
[1755395176916,4.18558811,188.06,188.01,3.26910384]
[1755395177126,0.65,188.05,188.01,3.26910384]
[1755395177348,0.65,188.04,188.01,3.26910384]
[1755395177620,0.52887666,188.05,187.99,38.36]
[1755395177621,4.06420607,188.05,188.03,3.26910384]
[1755395177924,0.52887666,188.05,188.03,3.26910384]
[1755395178311,0.52887666,188.05,188.04,3.59910384]
[1755395178516,3.53676118,188.1,188.04,3.59910384]
[1755395178847,3.53676118,188.1,188.08,3.26910384]
[1755395179032,4.18676118,188.1,188.07,3.26910384]
[1755395179201,7.98501286,188.09,187.99,44.61794667]
[1755395179396,3.26910384,188.05,188.0,8.58803181]
[1755395179601,3.26910384,188.03,187.98,5.31971486]
[1755395179826,0.65,188.02,187.98,8.5888187]
[1755395180000,0.65,188.01,187.99,3.26910384]
[1755395180201,4.71605688,188.04,187.99,3.26910384]
[1755395180532,4.71605688,188.04,187.97,0.03]
[1755395180533,3.26910384,188.01,187.97,0.03]
[1755395180841,0.52887666,188.0,187.97,0.03]
[1755395181018,1.17887666,188.0,187.97,0.03]
[1755395181207,0.65,187.99,187.97,0.03]
[1755395182428,4.4479805,188.01,187.97,0.03]
[1755395182651,11.39883483,188.01,187.97,0.03]
[1755395182956,0.65,187.99,187.97,0.03]
[1755395183354,1.17887666,188.01,187.97,5.58105551]
[1755395183723,0.52887666,188.0,187.97,5.58105551]
[1755395184043,6.20105551,187.99,187.97,0.03]
[1755395184225,6.07993217,187.98,187.97,0.03]
[1755395184427,1.17887666,187.98,187.97,0.03]
[1755395186961,10.26561125,187.98,187.97,0.03]
[1755395187163,12.04964703,187.98,187.97,0.03]
[1755395187359,41.58532611,187.98,187.91,2.77037881]
[1755395187665,5.55105551,187.93,187.87,5.55105551]
[1755395187960,1.17887666,187.92,187.87,5.55105551]
[1755395188141,0.52887666,187.93,187.88,5.55105551]
[1755395188340,0.65,187.92,187.89,5.55105551]
[1755395189043,0.52887666,187.93,187.85,16.40971112]
[1755395189243,0.52887666,187.93,187.9,5.55105551]
[1755395189438,0.52887666,187.93,187.86,5.68311295]
[1755395189439,38.26,187.94,187.91,5.55105551]
[1755395189645,38.26,187.94,187.9,5.55105551]
[1755395190027,1.17887666,187.93,187.89,5.55105551]
[1755395190234,0.65,187.92,187.86,5.32311295]
[1755395190462,0.52887666,187.91,187.87,5.55105551]
[1755395190666,0.65,187.9,187.85,8.09472457]
[1755395190969,0.65,187.9,187.87,5.55105551]
[1755395194257,0.52887666,187.93,187.89,5.55105551]
[1755395194458,0.52887666,187.93,187.9,5.55105551]
[1755395194459,3.54711178,187.92,187.9,5.55105551]
[1755395194772,3.54711178,187.91,187.89,5.55105551]
[1755395195069,0.65,187.92,187.89,5.55105551]
[1755395195268,3.54697214,187.91,187.89,5.55105551]
[1755395195450,10.27690431,187.9,187.85,5.55105551]
[1755395195653,3.54697214,187.89,187.86,0.36]
[1755395195973,4.44334306,187.93,187.88,5.55105551]
[1755395195974,0.52887666,187.93,187.88,5.55105551]
[1755395196282,3.54814798,187.92,187.91,5.55105551]
[1755395196648,3.54814798,187.92,187.91,10.87275206]
[1755395197569,3.54814798,187.92,187.91,5.32169655]
[1755395197760,3.54814798,187.92,187.91,10.87275206]
[1755395198677,3.54814798,187.92,187.9,5.32197977]
[1755395198866,39.49887666,187.95,187.91,5.55105551]
[1755395199179,4.19767539,187.94,187.92,5.55105551]
[1755395199345,3.54767539,187.93,187.92,5.55105551]
[1755395199545,4.19767539,187.93,187.9,10.87303528]
[1755395199745,3.54767539,187.92,187.9,10.87303528]
[1755395199971,0.65,187.92,187.9,10.87303528]
[1755395200154,0.52887666,187.94,187.9,10.87303528]
[1755395200346,4.1969222,187.93,187.9,5.55105551]
[1755395200657,0.65,187.93,187.9,5.55105551]
[1755395200869,0.65,187.93,187.9,10.87281774]
[1755395202662,0.65,187.93,187.9,5.32176223]
[1755395202970,0.65,187.93,187.89,0.03]
[1755395203271,0.65,187.92,187.9,3.27324654]
[1755395203474,1.17887666,187.94,187.9,3.27324654]
[1755395204280,4.72351693,187.94,187.9,3.27324654]
[1755395204981,3.96324654,187.93,187.89,0.03]
[1755395205275,4.07308412,187.92,187.89,0.03]
[1755395205469,41.49324654,187.91,187.89,0.03]
[1755395205772,0.52887666,187.9,187.89,0.03]
[1755395205977,1.21887666,187.9,187.89,0.03]
[1755395211570,0.52887666,187.9,187.89,0.03]
[1755395212070,1.21887666,187.9,187.89,0.03]
[1755395214190,39.33887666,187.9,187.89,0.03]
[1755395214384,39.31887666,187.9,187.89,0.03]
[1755395215867,38.62887666,187.9,187.89,0.03]
[1755395216078,38.1,187.9,187.89,0.03]
[1755395216765,38.1,187.91,187.89,0.03]
[1755395217085,0.52887666,187.9,187.89,0.03]
[1755395217487,38.79,187.91,187.89,0.03]
[1755395217690,0.52887666,187.9,187.89,0.03]
[1755395218387,4.77125022,187.9,187.89,0.03]
[1755395219389,4.08125022,187.9,187.89,0.03]
[1755395219888,3.55237356,187.9,187.89,0.03]
[1755395220287,3.55237356,187.9,187.89,3.66324654]
[1755395220490,3.55237356,187.92,187.89,3.30324654]
[1755395220704,38.58887666,187.93,187.91,3.27324654]
[1755395220899,39.27887666,187.93,187.9,3.27324654]
[1755395221119,38.75,187.93,187.91,3.27324654]
[1755395221414,0.06,187.97,187.92,3.27324654]
[1755395221617,3.55949387,187.96,187.95,3.27324654]
[1755395224217,3.55949387,187.96,187.94,8.5939808]
[1755395224414,3.55949387,187.95,187.93,8.59435992]
[1755395224584,3.55949387,187.94,187.93,8.59435992]
[1755395227015,3.55949387,187.94,187.93,3.27324654]
[1755395227216,3.55949387,187.94,187.92,3.27324654]
[1755395227420,3.55949387,187.94,187.9,5.32174516]
[1755395227421,4.77837053,187.93,187.9,5.32174516]
[1755395227725,4.24949387,187.92,187.9,5.32174516]
[1755395227898,38.04,187.94,187.91,3.27324654]
[1755395228098,3.5654403,187.93,187.91,0.36]
[1755395228299,3.5654403,187.92,187.91,0.36]
[1755395228501,3.5654403,187.92,187.9,5.32174516]
[1755395228701,0.69,187.95,187.9,5.32174516]
[1755395228902,4.78559264,187.94,187.89,0.03]
[1755395229218,3.56671598,187.93,187.89,0.03]
[1755395229429,4.09559264,187.92,187.89,3.30324654]
[1755395229593,3.56671598,187.91,187.89,3.30324654]
[1755395229790,0.69,187.91,187.89,3.30324654]
[1755395230219,0.69,187.91,187.89,8.6254103]
[1755395230434,0.69,187.93,187.9,3.27324654]
[1755395230736,3.56758913,187.92,187.89,5.71216376]
[1755395230902,1.21887666,187.95,187.91,3.27324654]
[1755395231096,3.56758562,187.94,187.92,3.27324654]
[1755395231297,38.73,187.95,187.93,3.27324654]
[1755395231513,3.56817453,187.94,187.9,0.36]
[1755395231706,39.31887666,187.97,187.9,0.36]
[1755395231905,3.56847772,187.96,187.9,0.36]
[1755395232220,3.56847772,187.95,187.89,18.65782132]
[1755395232531,3.56847772,187.94,187.93,3.27324654]
[1755395234524,4.24847772,187.94,187.93,3.27324654]
[1755395235835,3.56847772,187.94,187.93,8.59437674]
[1755395236512,0.06,187.97,187.93,22.25720226]
[1755395236708,3.56802618,187.96,187.94,0.36]
[1755395236898,0.06,187.97,187.95,0.36]
[1755395237322,0.06,187.97,187.96,0.36]
[1755395237901,0.06,187.97,187.96,3.63324654]
[1755395238636,0.06,187.97,187.96,8.59352745]
[1755395238799,0.06,187.97,187.96,8.95352745]
[1755395242017,1e-08,187.97,187.96,8.95352745]
[1755395246636,1e-08,187.97,187.96,46.97352745]
[1755395247008,0.06,188.01,188.0,15.10621557]
[1755395247316,3.55632359,188.08,188.03,15.10621557]
[1755395247617,0.68,188.08,188.07,3.27324654]
[1755395247811,3.55632359,188.11,188.03,15.10621557]
[1755395247812,0.68,188.07,188.05,3.27324654]
[1755395248716,0.68,188.07,188.03,31.31801945]
[1755395248717,0.68,188.07,188.04,3.27324654]
[1755395248943,0.68,188.07,187.99,16.57157452]
[1755395248944,0.52887666,188.06,188.02,3.27324654]
[1755395249231,0.68,188.05,188.02,3.27324654]
[1755395250035,0.68,188.05,188.03,3.27324654]
[1755395250411,0.68,188.04,188.03,3.27324654]
[1755395250734,0.68,188.04,188.03,8.59154681]
[1755395251921,0.68,188.04,188.0,5.31914893]
[1755395252127,0.68,188.04,188.0,8.59239547]
[1755395252525,3.8021232,188.03,187.98,5.31951178]
[1755395252731,0.68,188.02,187.99,3.27324654]
[1755395252919,0.68,188.01,187.99,3.27324654]
[1755395253415,0.68,188.0,187.99,3.27324654]
[1755395254146,0.68,188.0,187.99,8.59267842]
[1755395254910,0.68,188.02,187.99,8.59267842]
[1755395255115,0.68,188.01,188.0,3.27324654]
[1755395255315,0.68,188.03,188.0,3.27324654]
[1755395255525,0.68,188.02,188.01,3.27324654]
[1755395256244,0.68,188.02,188.01,8.59211255]
[1755395256546,0.68,188.04,188.01,8.59211255]
[1755395256849,0.68,188.04,188.03,3.27324654]
[1755395257134,0.06,188.05,188.03,3.27324654]
[1755395257350,0.06,188.05,188.04,3.27324654]
[1755395258139,0.06,188.05,188.04,8.59126398]
[1755395260346,0.06,188.05,188.03,5.31830027]
[1755395260646,0.06,188.05,188.04,3.27324654]
[1755395261851,0.06,188.05,188.04,3.63324654]
[1755395262552,0.06,188.05,188.04,8.59126398]
[1755395263139,0.06,188.05,188.04,8.95126398]
[1755395263454,0.06,188.05,188.04,8.59126398]
[1755395273138,0.78,188.05,188.04,8.59126398]
[1755395273758,0.06,188.05,188.04,8.59126398]
[1755395277456,1e-08,188.05,188.04,104.48928129]
[1755395277766,0.06,188.11,188.1,26.0]
[1755395277975,0.06,188.11,188.1,67.25324654]
[1755395278173,0.06,188.11,188.1,63.98]
[1755395278378,0.06,188.11,188.1,82.35946211]
[1755395278584,0.06,188.11,188.1,79.08621557]
[1755395278867,0.06,188.11,188.1,85.99270865]
[1755395279072,0.06,188.11,188.1,82.71946211]
[1755395279246,0.06,188.11,188.1,88.03578321]
[1755395279650,0.06,188.11,188.1,87.67578321]
[1755395280274,0.78,188.11,188.1,5.3163211]
[1755395280450,0.78,188.11,188.1,38.28]
[1755395280957,0.06,188.11,188.1,57.01946211]
[1755395281271,0.06,188.11,188.1,62.33578321]
[1755395281577,0.1,188.16,188.1,79.43146462]
[1755395281878,0.06,188.2,188.16,15.10621557]
[1755395282174,0.06,188.2,188.19,3.27324654]
[1755395282476,0.06,188.2,188.19,41.57324654]
[1755395282686,4.05324654,188.2,188.11,15.10621557]
[1755395282992,4.5221232,188.19,188.13,3.27324654]
[1755395283142,7.55066277,188.18,188.14,38.44]
[1755395283344,3.99324654,188.17,188.14,38.44]
[1755395283539,0.72,188.16,188.14,38.44]
[1755395283743,0.72,188.16,188.14,41.71324654]
[1755395284011,0.72,188.16,188.14,38.44]
[1755395284268,0.72,188.15,188.14,38.44]
[1755395285072,0.72,188.15,188.14,47.02843735]
[1755395285275,0.72,188.17,188.14,47.02843735]
[1755395285472,0.72,188.16,188.14,47.02843735]
[1755395286844,0.72,188.16,188.15,3.27324654]
[1755395287254,0.78,188.18,188.15,3.27324654]
[1755395287551,0.72,188.17,188.14,43.75519081]
[1755395287767,0.72,188.16,188.14,47.02843735]
[1755395287974,0.72,188.16,188.15,3.27324654]
[1755395288368,0.72,188.16,188.14,38.44]
[1755395288572,0.72,188.16,188.12,41.67324654]
[1755395289404,4.08103654,188.15,188.1,0.03]
[1755395289694,4.27215988,188.14,188.1,38.41]
[1755395289890,3.55215988,188.13,188.1,38.41]
[1755395290179,0.72,188.12,188.1,38.41]
[1755395290359,3.8021232,188.15,188.1,38.41]
[1755395290558,0.72,188.11,188.1,38.41]
[1755395291084,0.72,188.11,188.1,0.03]
[1755395292574,4.27306454,188.11,188.1,0.03]
[1755395292776,0.72,188.11,188.1,0.03]
[1755395294292,3.55337358,188.13,188.1,3.30324654]
[1755395294477,0.66,188.12,188.1,3.30324654]
[1755395294793,0.66,188.11,188.1,3.30324654]
[1755395294976,0.66,188.11,188.1,0.03]
[1755395299981,4.21675023,188.11,188.1,0.03]
[1755395300182,0.66,188.11,188.1,0.03]
[1755395300384,0.66,188.13,188.1,0.03]
[1755395300884,0.66,188.12,188.1,0.03]
[1755395303287,0.66,188.12,188.1,3.30324654]
[1755395303486,0.66,188.14,188.11,3.27324654]
[1755395303796,0.66,188.13,188.1,3.30324654]
[1755395304186,3.5604243,188.14,188.1,3.30324654]
[1755395304386,0.66,188.14,188.11,3.27324654]
[1755395304588,4.2204243,188.14,188.11,3.27324654]
[1755395304900,3.56098378,188.15,188.12,3.27324654]
[1755395305111,0.66,188.15,188.12,3.27324654]
[1755395305274,0.06,188.16,188.13,8.58846429]
[1755395305606,0.72,188.16,188.13,8.58846429]
[1755395306109,0.06,188.16,188.13,8.58846429]
[1755395306291,0.66,188.15,188.13,8.58846429]
[1755395306486,0.06,188.16,188.13,8.58846429]
[1755395306690,0.06,188.16,188.14,3.27324654]
[1755395306916,0.06,188.16,188.15,3.27324654]
[1755395307388,0.06,188.16,188.15,8.58815485]
[1755395311914,0.72,188.16,188.13,3.27324654]
[1755395312415,0.72,188.16,188.14,3.27324654]
[1755395312814,0.06,188.16,188.14,3.27324654]
[1755395313020,0.06,188.16,188.15,3.27324654]
[1755395313913,0.06,188.16,188.15,3.63324654]
[1755395314522,0.06,188.16,188.15,8.94815485]
[1755395315032,0.06,188.16,188.15,24.05437042]
[1755395318112,0.06,188.16,188.15,103.95437042]
[1755395318697,0.06,188.16,188.15,141.71437042]
[1755395319906,0.06,188.16,188.15,138.44112388]
[1755395320232,0.72,188.16,188.15,126.60815485]
[1755395322930,0.72,188.16,188.15,126.63815485]
[1755395323134,0.72,188.16,188.15,46.73815485]
[1755395323505,0.06,188.16,188.15,46.73815485]
[1755395326434,1e-08,188.16,188.15,62.20437042]
[1755395327110,1e-08,188.16,188.15,142.10437042]
[1755395327320,1e-08,188.18,188.17,41.10621557]
[1755395327524,1e-08,188.18,188.17,162.29946211]
[1755395327744,0.06,188.2,188.18,15.10621557]
[1755395328032,0.06,188.22,188.21,41.10621557]
[1755395328234,0.06,188.22,188.21,82.37946211]
[1755395328535,0.06,188.22,188.21,88.05267607]
[1755395329735,0.06,188.22,188.21,87.69267607]
[1755395329940,0.06,188.22,188.21,72.5864605]
[1755395331122,0.06,188.22,188.21,34.5864605]
[1755395331443,0.06,188.22,188.21,72.5864605]
[1755395332623,0.74,188.22,188.21,72.5864605]
[1755395333531,0.06,188.22,188.21,72.5864605]
[1755395337143,0.74,188.22,188.21,72.5664605]
[1755395338424,0.06,188.22,188.21,72.9264605]
[1755395338624,0.06,188.22,188.21,76.19970704]
[1755395339349,0.06,188.26,188.25,41.10621557]
[1755395339526,0.06,188.26,188.25,82.35946211]
[1755395339928,0.06,188.26,188.25,82.71946211]
[1755395340375,0.06,188.28,188.26,15.10621557]
[1755395340542,1e-08,188.3,188.29,41.10621557]
[1755395340740,1e-08,188.3,188.29,82.35946211]
[1755395340942,1e-08,188.3,188.29,82.71946211]
[1755395341372,1e-08,188.32,188.29,88.03041861]
[1755395341549,1e-08,188.36,188.34,15.10621557]
[1755395341866,1e-08,188.36,188.35,41.25324654]
[1755395342068,1e-08,188.36,188.35,41.61324654]
[1755395342374,0.1,188.41,188.37,41.10621557]
[1755395342581,1e-08,188.38,188.37,82.35946211]
[1755395342945,1e-08,188.38,188.37,82.71946211]
[1755395343362,0.68,188.47,188.41,15.10621557]
[1755395343567,0.68,188.47,188.46,3.27324654]
[1755395343743,0.68,188.47,188.46,37.98]
[1755395343939,0.68,188.47,188.43,3.27324654]
[1755395344136,0.68,188.47,188.43,37.98]
[1755395344577,4.22213058,188.47,188.43,37.98]
[1755395344740,4.4821232,188.46,188.38,26.0]
[1755395344940,7.49537712,188.45,188.39,41.25324654]
[1755395345265,0.68,188.44,188.4,3.27324654]
[1755395345441,0.68,188.44,188.41,37.98]
[1755395346474,3.27324654,188.42,188.4,37.96]
[1755395346669,0.68,188.41,188.38,37.96]
[1755395347176,3.95324654,188.41,188.38,37.96]
[1755395347375,4.2150152,188.43,188.4,3.27324654]
[1755395347673,3.8021232,188.45,188.4,37.96]
[1755395347674,0.68,188.42,188.4,37.96]
[1755395347879,3.27324654,188.44,188.4,37.96]
[1755395348077,0.68,188.44,188.41,3.27324654]
[1755395348268,0.68,188.44,188.42,41.23324654]
[1755395348473,0.68,188.44,188.42,37.96]
[1755395349789,0.68,188.43,188.42,37.96]
[1755395349987,4.21217066,188.43,188.42,37.96]
[1755395350192,4.21217066,188.43,188.39,3.27324654]
[1755395350365,4.21217066,188.43,188.4,37.96]
[1755395350366,4.21217066,188.42,188.4,37.96]
[1755395350685,3.27324654,188.43,188.4,37.96]
[1755395350686,0.68,188.41,188.4,37.96]
[1755395351992,0.68,188.44,188.4,48.79406812]
[1755395352195,4.21057258,188.43,188.4,37.96]
[1755395352364,0.68,188.42,188.4,37.96]
[1755395352564,5.52631527,188.44,188.4,37.96]
[1755395352876,0.68,188.41,188.4,37.96]
[1755395354184,4.2090377,188.41,188.4,37.96]
[1755395354389,0.68,188.41,188.4,37.96]
[1755395354897,4.18922471,188.41,188.4,37.96]
[1755395355093,4.18922471,188.41,188.38,37.96]
[1755395355260,0.66,188.4,188.38,37.96]
[1755395355459,0.66,188.39,188.38,37.96]
[1755395356473,0.66,188.39,188.37,85.42631527]
[1755395356987,0.66,188.39,188.38,37.96]
[1755395357490,0.66,188.39,188.37,79.9]
[1755395357690,0.66,188.39,188.38,37.96]
[1755395357854,0.66,188.39,188.37,79.9]
[1755395357855,0.66,188.38,188.37,79.9]
[1755395358061,9.71664783,188.38,188.35,37.94]
[1755395358278,0.66,188.37,188.35,37.94]
[1755395358666,9.7175745,188.36,188.3,10.83679479]
[1755395358865,9.71780349,188.35,188.31,37.94]
[1755395359120,4.19156394,188.34,188.31,37.94]
[1755395359273,5.52631527,188.36,188.31,37.94]
[1755395359474,3.53235434,188.35,188.31,43.46631527]
[1755395359677,6.18631527,188.37,188.32,5.52631527]